fUSD/lending_fUSD_20260112
["ID","MTS","AMOUNT","RATE_DAILY","PERIOD"]
[401410683,1768191044950,-350.68764993,0.00016418,2]
[401410684,1768191044959,-150.0,0.00016425,2]
[401410685,1768191044970,-150.0,0.00016425,2]
[401410686,1768191044979,-857.39859615,0.00016428,2]
[401410687,1768191044989,-936.76429918,0.0001643,2]
[401410688,1768191044999,-350.68764993,0.00016436,2]
[401410689,1768191045012,-1269.29,0.00016438,2]
[401410690,1768191045022,-888.0,0.00016438,2]
[401410691,1768191045032,-22329.89,0.00016438,2]
[401410692,1768191045041,-800.75292195,0.00016438,2]
[401410693,1768191045051,-151.0,0.00016438,2]
[401410694,1768191045060,-165.11,0.0001644,2]
[401410695,1768191045070,-350.68764993,0.00016455,2]
[401410696,1768191045080,-150.0,0.00016457,2]
[401410697,1768191045089,-150.0,0.00016457,2]
[401410698,1768191045099,-500.0,0.00016466,2]
[401410699,1768191045108,-522.479568,0.00016466,2]
[401410700,1768191045117,-350.68764993,0.00016473,2]
[401410701,1768191045127,-260.71170844,0.00016473,2]
[401410702,1768191045138,-150.0,0.00016477,2]
[401410703,1768191045148,-350.68764993,0.00016491,2]
[401410705,1768191045159,-150.0,0.000165,2]
[401410706,1768191045168,-150.0,0.000165,2]
[401410708,1768191045178,-5534.0,0.000165,3]
[401410710,1768191045187,-350.68764993,0.00016509,2]
[401410712,1768191045197,-350.68764993,0.00016527,2]
[401410714,1768191045206,-350.68764993,0.00016545,2]
[401410717,1768191045216,-150.0,0.0001656,2]
[401410719,1768191045225,-350.68764993,0.00016564,2]
[401410721,1768191045234,-350.68764993,0.00016582,2]
[401410722,1768191045244,-150.0,0.00016586,2]
[401410724,1768191045253,-150.0,0.00016586,2]
[401410726,1768191045263,-1000.0,0.00016597,2]
[401410728,1768191045273,-350.68764993,0.000166,2]
[401410730,1768191045282,-736.0,0.00016601,2]
[401410732,1768191045291,-150.0,0.00016615,2]
[401410734,1768191045301,-350.68764993,0.00016618,2]
[401410735,1768191045310,-595.37131296,0.00016619,2]
[401410737,1768191045325,-350.68764993,0.00016636,2]
[401410739,1768191045334,-150.0,0.0001665,2]
[401410741,1768191045344,-150.0,0.0001665,2]
[401410743,1768191045353,-150.0,0.0001665,2]
[401410745,1768191045363,-150.0,0.0001665,2]
[401410747,1768191045372,-350.68764993,0.00016655,2]
[401410749,1768191045382,-350.68764993,0.00016673,2]
[401410751,1768191045393,-350.68764993,0.00016691,2]
[401410753,1768191045403,-1000.0,0.00016702,2]
[401410754,1768191045414,-350.68764993,0.00016709,2]
[401410756,1768191045427,-1269.38109109,0.00016712,2]
[401410758,1768191045437,-150.0,0.00016714,2]
[401410760,1768191045446,-150.0,0.00016714,2]
[401410761,1768191045456,-936.76429918,0.00016724,2]
[401410762,1768191045466,-350.68764993,0.00016727,2]
[401410763,1768191045476,-150.0,0.0001674,2]
[401410764,1768191045485,-350.68764993,0.00016745,2]
[401410765,1768191045496,-150.0,0.00016754,2]
[401410766,1768191045506,-350.68764993,0.00016764,2]
[401410767,1768191045516,-274.75,0.00016767,2]
[401410768,1768191045526,-467.15,0.00016778,2]
[401410769,1768191045535,-179.23,0.00016778,2]
[401410770,1768191045545,-179.23,0.00016778,2]
[401410771,1768191045554,-179.23,0.00016778,2]
[401410772,1768191045563,-179.23,0.00016778,2]
[401410773,1768191045573,-556.69,0.00016778,2]
[401410774,1768191045583,-181.9,0.00016779,2]
[401410776,1768191045592,-556.69,0.00016779,2]
[401410777,1768191045602,-350.68764993,0.00016782,2]
[401410780,1768191045907,-14966.28065333,0.0001679,2]
[401410781,1768191045918,-150.0,0.000168,2]
[401410782,1768191045928,-150.0,0.000168,2]
[401410783,1768191045939,-150.0,0.000168,2]
[401410784,1768191045949,-350.68764993,0.000168,2]
[401410786,1768191045959,-350.68764993,0.00016818,2]
[401410787,1768191045968,-350.68764993,0.00016836,2]
[401410788,1768191045978,-150.0,0.00016843,2]
[401410789,1768191045989,-150.0,0.00016843,2]
[401410790,1768191045999,-166.66,0.00016845,2]
[401410791,1768191046009,-350.68764993,0.00016855,2]
[401410792,1768191046020,-350.68764993,0.00016873,2]
[401410793,1768191046030,-150.0,0.00016875,2]
[401410794,1768191046041,-150.0,0.00016875,2]
[401410795,1768191046052,-350.68764993,0.00016891,2]
[401410796,1768191046063,-150.0,0.00016892,2]
[401410797,1768191046073,-4500.0,0.000169,6]
[401410798,1768191046083,-5534.0,0.000169,5]
[401410799,1768191046093,-219.07665552,0.00016902,2]
[401410800,1768191046102,-350.68764993,0.00016909,2]
[401410801,1768191046114,-1073.4,0.00016919,2]
[401410802,1768191046125,-150.0,0.0001692,2]
[401410803,1768191046137,-1101.0,0.00016921,2]
[401410804,1768191046146,-350.68764993,0.00016927,2]
[401410805,1768191046156,-350.68764993,0.00016945,2]
[401410806,1768191046166,-150.0,0.0001695,2]
[401410807,1768191046176,-350.68764993,0.00016964,2]
[401410808,1768191046187,-166.35,0.00016968,2]
[401410809,1768191046198,-150.0,0.00016971,2]
[401410810,1768191046209,-150.0,0.00016971,2]
[401410811,1768191046219,-350.68764993,0.00016982,2]
[401410812,1768191046228,-350.68764993,0.00017,2]
[401410813,1768191046236,-1073.4,0.00017017,2]
[401410814,1768191046244,-936.76429918,0.00017018,2]
[401410815,1768191046254,-350.68764993,0.00017018,2]
[401410816,1768191046265,-150.0,0.00017031,2]
[401410817,1768191046276,-350.68764993,0.00017036,2]
[401410818,1768191046286,-661.95,0.00017041,2]
[401410819,1768191046297,-483.1,0.00017041,2]
[401410820,1768191046307,-661.95,0.00017041,2]
[401410821,1768191046318,-483.1,0.00017041,2]
[401410822,1768191046329,-661.95,0.00017041,2]
[401410823,1768191046338,-483.1,0.00017041,2]
[401410824,1768191046348,-350.68764993,0.00017055,2]
[401410825,1768191046357,-216.05,0.00017066,2]
[401410826,1768191046367,-500.84079337,0.00017073,2]
[401410827,1768191046376,-500.0,0.00017073,2]
[401410828,1768191046385,-166.96227274,0.00017073,2]
[401410829,1768191046395,-500.0,0.00017073,2]
[401410830,1768191046407,-540.4577012,0.00017073,2]
[401410831,1768191046416,-500.0,0.00017073,2]
[401410832,1768191046430,-503.84192068,0.00017073,2]
[401410833,1768191046439,-500.0,0.00017073,2]
[401410834,1768191046449,-500.0,0.00017073,2]
[401410835,1768191046458,-501.77861007,0.00017073,2]
[401410836,1768191046469,-500.0,0.00017073,2]
[401410837,1768191046479,-500.51842778,0.00017073,2]
[401410838,1768191046488,-500.0,0.00017073,2]
[401410839,1768191046502,-500.0,0.00017073,2]
[401410840,1768191046511,-500.64635657,0.00017073,2]
[401410841,1768191046521,-173.30819609,0.00017073,2]
[401410842,1768191046531,-500.0,0.00017073,2]
[401410843,1768191046541,-500.0,0.00017073,2]
[401410844,1768191046550,-500.0,0.00017073,2]
[401410845,1768191046560,-500.0,0.00017073,2]
[401410846,1768191046570,-500.85931304,0.00017073,2]
[401410847,1768191046580,-501.85422751,0.00017073,2]
[401410848,1768191046590,-500.0,0.00017073,2]
[401410849,1768191046599,-501.67211681,0.00017073,2]
[401410850,1768191046608,-500.32712274,0.00017073,2]
[401410851,1768191046617,-500.53829083,0.00017073,2]
[401410852,1768191046627,-500.57959935,0.00017073,2]
[401410853,1768191046637,-500.0,0.00017073,2]
[401410854,1768191046646,-503.00247421,0.00017073,2]
[401410855,1768191046656,-500.19211788,0.00017073,2]
[401410856,1768191046666,-500.38035534,0.00017073,2]
[401410857,1768191046675,-500.0,0.00017073,2]
[401410858,1768191046685,-500.0,0.00017073,2]
[401410859,1768191046696,-163.4155148,0.00017073,2]
[401410860,1768191046705,-169.17232811,0.00017073,2]
[401410861,1768191046714,-500.83788468,0.00017073,2]
[401410862,1768191046724,-500.84213941,0.00017073,2]
[401410863,1768191046733,-500.26791262,0.00017073,2]
[401410864,1768191046743,-162.59101262,0.00017073,2]
[401410865,1768191046752,-500.0,0.00017073,2]
[401410866,1768191046761,-486.88056707,0.00017073,2]
[401410867,1768191046771,-647.42016729,0.00017073,2]
[401410868,1768191046781,-350.68764993,0.00017073,2]
[401410869,1768191046791,-500.0,0.0001708,2]
[401410870,1768191046801,-30000.0,0.00017082,2]
[401410871,1768191046811,-350.68764993,0.00017091,2]
[401410872,1768191046820,-150.0,0.000171,2]
[401410873,1768191046830,-150.0,0.000171,2]
[401410874,1768191046840,-150.0,0.000171,2]
[401410875,1768191046849,-150.0,0.000171,2]
[401410876,1768191046859,-150.0,0.000171,2]
[401410877,1768191046869,-150.0,0.000171,2]
[401410878,1768191046879,-150.0,0.000171,2]
[401410879,1768191046889,-150.0,0.000171,2]
[401410880,1768191046898,-350.68764993,0.00017109,2]
[401410881,1768191046907,-1073.4,0.00017116,2]
[401410882,1768191046916,-452.20818428,0.00017118,2]
[401410883,1768191046926,-350.68764993,0.00017127,2]
[401410884,1768191046936,-350.68764993,0.00017145,2]
[401410885,1768191046946,-823.0,0.00017146,2]
[401410886,1768191046956,-350.68764993,0.00017164,2]
[401410887,1768191046966,-617.40005154,0.00017167,2]
[401410888,1768191046976,-150.0,0.00017169,2]
[401410889,1768191046987,-200.0,0.00017174,2]
[401410890,1768191046997,-3292.0,0.00017178,2]
[401410891,1768191047008,-171.53,0.00017178,2]
[401410892,1768191047019,-171.53,0.00017178,2]
[401410893,1768191047028,-305.42,0.00017178,2]
[401410894,1768191047038,-171.53,0.00017178,2]
[401410895,1768191047048,-301.93,0.00017178,2]
[401410896,1768191047058,-467.15,0.00017178,2]
[401410897,1768191047067,-178.11,0.00017178,2]
[401410898,1768191047077,-157.73,0.00017178,2]
[401410899,1768191047086,-171.53,0.00017178,2]
[401410900,1768191047096,-467.15,0.00017178,2]
[401410901,1768191047105,-150.0,0.00017178,2]
[401410902,1768191047114,-171.53,0.00017178,2]
[401410903,1768191047124,-467.15,0.00017178,2]
[401410904,1768191047133,-150.0,0.00017178,2]
[401410905,1768191047143,-250.0,0.00017179,2]
[401410906,1768191047156,-350.68764993,0.00017182,2]
[401410907,1768191047166,-260.71170844,0.00017187,2]
[401410908,1768191047176,-68781.70526549,0.00017198,2]
[401410909,1768191047186,-526.37134529,0.00017199,2]
[401410910,1768191047196,-350.68764993,0.000172,2]
[401410911,1768191047206,-6800.0,0.000172,6]
[401410912,1768191047215,-1073.4,0.00017214,2]
[401410913,1768191047226,-350.68764993,0.00017218,2]
[401410914,1768191047235,-150.0,0.00017229,2]
[401410915,1768191047245,-150.0,0.00017229,2]
[401410916,1768191047255,-350.68764993,0.00017236,2]
[401410917,1768191047265,-150.0,0.0001725,2]
[401410918,1768191047275,-350.68764993,0.00017255,2]
[401410919,1768191047285,-350.68764993,0.00017273,2]
[401410920,1768191047295,-150.0,0.0001728,2]
[401410921,1768191047305,-350.68764993,0.00017291,2]
[401410922,1768191047315,-9100.0,0.000173,6]
[401410923,1768191047325,-150.0,0.00017308,2]
[401410924,1768191047335,-350.68764993,0.00017309,2]
[401410925,1768191047344,-1073.4,0.00017312,2]
[401410926,1768191047355,-936.76429918,0.00017312,2]
[401410927,1768191047364,-150.0,0.00017325,2]
[401410928,1768191047374,-150.0,0.00017325,2]
[401410929,1768191047384,-350.68764993,0.00017327,2]
[401410930,1768191047393,-14966.28065333,0.00017345,2]
[401410931,1768191047404,-350.68764993,0.00017345,2]
[401410932,1768191047414,-150.0,0.00017357,2]
[401410933,1768191047427,-150.0,0.00017357,2]
[401410934,1768191047437,-350.68764993,0.00017364,2]
[401410935,1768191047447,-158.73335703,0.00017377,2]
[401410936,1768191047457,-350.68764993,0.00017382,2]
[401410937,1768191047468,-500.0,0.00017397,2]
[401410938,1768191047478,-150.0,0.000174,2]
[401410939,1768191047487,-150.0,0.000174,2]
[401410940,1768191047499,-150.0,0.000174,2]
[401410941,1768191047509,-350.68764993,0.000174,2]
[401410942,1768191047519,-1000.0,0.000174,2]
[401410943,1768191047529,-11400.0,0.000174,6]
[401410944,1768191047539,-166.66,0.00017401,2]
[401410945,1768191047549,-1073.4,0.0001741,2]
[401410946,1768191047560,-350.68764993,0.00017418,2]
[401410947,1768191047569,-1000.0,0.00017435,2]
[401410948,1768191047580,-350.68764993,0.00017436,2]
[401410949,1768191047589,-150.0,0.00017446,2]
[401410950,1768191047599,-150.87,0.00017452,2]
[401410951,1768191047608,-350.68764993,0.00017455,2]
[401410952,1768191047617,-1000.0,0.00017457,2]
[401410953,1768191047627,-150.0,0.0001746,2]
[401410954,1768191047636,-317.89217192,0.00017461,2]
[401410955,1768191047646,-2987.79350318,0.00017461,2]
[401410956,1768191047658,-350.68764993,0.00017473,2]
[401410957,1768191047667,-1330.0,0.00017481,2]
[401410958,1768191047677,-614.0,0.00017481,2]
[401410959,1768191047687,-1405.0,0.00017481,2]
[401410960,1768191047701,-3469.0,0.00017481,2]
[401410961,1768191047711,-1267.0,0.00017481,2]
[401410962,1768191047721,-506.0,0.00017481,2]
[401410963,1768191047730,-1201.0,0.00017481,2]
[401410964,1768191047739,-914.0,0.00017481,2]
[401410965,1768191047748,-4821.0,0.00017481,2]
[401410966,1768191047758,-6556.0,0.00017481,2]
[401410967,1768191047767,-2437.0,0.00017481,2]
[401410968,1768191047777,-150.0,0.00017486,2]
[401410969,1768191047786,-150.0,0.00017486,2]
[401410970,1768191047796,-350.68764993,0.00017491,2]
[401410971,1768191047806,-1000.0,0.000175,2]
[401410972,1768191047816,-2200.0,0.000175,6]
[401410973,1768191047828,-1073.4,0.00017509,2]
[401410974,1768191047838,-350.68764993,0.00017509,2]
[401410975,1768191047847,-350.68764993,0.00017527,2]
[401410976,1768191047858,-274.75,0.00017529,2]
[401410977,1768191047870,-28047.0,0.00017534,2]
[401410978,1768191047880,-350.68764993,0.00017545,2]
[401410979,1768191047889,-2987.79350316,0.00017549,2]
[401410980,1768191047899,-150.0,0.0001755,2]
[401410981,1768191047908,-150.0,0.0001755,2]
[401410982,1768191047918,-150.0,0.0001755,2]
[401410983,1768191047927,-150.0,0.0001755,2]
[401410984,1768191047937,-150.0,0.0001755,2]
[401410985,1768191047947,-1110.78417922,0.0001756,5]
[401410986,1768191047957,-262.49854168,0.0001756,2]
[401410987,1768191047967,-158018.86338473,0.0001756,2]
[401410988,1768191047976,-257050.49498623,0.0001756,2]
[401410989,1768191047986,-363032.01685708,0.0001756,2]
[401410990,1768191047996,-469755.7821,0.0001756,2]
[401410991,1768191048006,-350.68764993,0.00017564,2]
[401410992,1768191048016,-821.41,0.00017581,2]
[401410993,1768191048026,-350.68764993,0.00017582,2]
[401410994,1768191048036,-216.05,0.00017583,2]
[401410995,1768191048046,-150.0,0.00017585,2]
[401410996,1768191048056,-1000.0,0.00017587,2]
[401410997,1768191048066,-965.54,0.00017588,2]
[401410998,1768191048075,-350.68764993,0.000176,2]
[401410999,1768191048086,-1000.0,0.000176,2]
[401411000,1768191048095,-2200.0,0.000176,6]
[401411001,1768191048105,-467.15,0.000176,2]
[401411002,1768191048115,-473.77,0.000176,2]
[401411003,1768191048124,-467.05,0.000176,2]
[401411004,1768191048134,-467.05,0.000176,2]
[401411005,1768191048143,-467.05,0.000176,2]
[401411006,1768191048153,-467.05,0.000176,2]
[401411007,1768191048162,-179.28,0.000176,2]
[401411008,1768191048172,-556.69,0.000176,2]
[401411009,1768191048182,-556.69,0.000176,2]
[401411010,1768191048191,-556.69,0.000176,2]
[401411011,1768191048201,-567.73,0.000176,2]
[401411012,1768191048212,-556.69,0.000176,2]
[401411013,1768191048221,-556.69,0.000176,2]
[401411014,1768191048231,-666.79,0.000176,2]
[401411015,1768191048241,-914.7,0.000176,2]
[401411016,1768191048251,-179.28,0.00017601,2]
[401411017,1768191048261,-179.28,0.00017601,2]
[401411018,1768191048271,-179.28,0.00017601,2]
[401411019,1768191048365,-936.76429918,0.00017606,2]
[401411020,1768191048374,-1073.4,0.00017607,2]
[401411021,1768191048383,-150.0,0.00017614,2]
[401411022,1768191048393,-150.0,0.00017614,2]
[401411023,1768191048404,-350.68764993,0.00017618,2]
[401411024,1768191048413,-500.0,0.0001762,2]
[401411025,1768191048427,-501.68963282,0.00017621,2]
[401411026,1768191048436,-500.52073568,0.00017621,2]
[401411027,1768191048446,-1001.98142269,0.00017621,2]
[401411028,1768191048456,-501.81552952,0.00017621,2]
[401411029,1768191048467,-1000.0,0.00017621,2]
[401411030,1768191048479,-1002.68294103,0.00017621,2]
[401411031,1768191048488,-1000.0,0.00017621,2]
[401411032,1768191048498,-604.83613644,0.00017621,2]
[401411033,1768191048508,-1001.39881462,0.00017621,2]
[401411034,1768191048517,-1001.49774725,0.00017621,2]
[401411035,1768191048528,-1000.0,0.00017621,2]
[401411036,1768191048538,-502.50985622,0.00017621,2]
[401411037,1768191048547,-1000.0,0.00017621,2]
[401411038,1768191048556,-1000.0,0.00017621,2]
[401411039,1768191048565,-1000.0,0.00017621,2]
[401411040,1768191048574,-1000.0,0.00017621,2]
[401411041,1768191048584,-1002.11848052,0.00017621,2]
[401411042,1768191048594,-350.68764993,0.00017636,2]
[401411043,1768191048604,-2987.79350316,0.00017637,2]
[401411044,1768191048613,-150.0,0.0001764,2]
[401411045,1768191048622,-2526.34474309,0.0001764,2]
[401411046,1768191048632,-350.68764993,0.00017655,2]
[401411047,1768191048642,-350.68764993,0.00017673,2]
[401411048,1768191048651,-47598.0,0.00017674,2]
[401411049,1768191048660,-317.89217191,0.00017681,2]
[401411050,1768191048669,-1997.0,0.00017683,2]
[401411051,1768191048678,-350.68764993,0.00017691,2]
[401411052,1768191048687,-150.0,0.000177,2]
[401411053,1768191048696,-150.0,0.000177,2]
[401411054,1768191048706,-2200.0,0.000177,6]
[401411055,1768191048715,-1958.0,0.00017703,2]
[401411056,1768191048726,-1073.4,0.00017705,2]
[401411057,1768191048735,-350.68764993,0.00017709,2]
[401411058,1768191048746,-666.72878,0.00017713,2]
[401411059,1768191048757,-346.92554585,0.00017713,2]
[401411060,1768191048769,-998.0,0.00017714,2]
[401411061,1768191048779,-640.24385345,0.00017715,2]
[401411062,1768191048790,-150.0,0.00017723,2]
[401411063,1768191048800,-2987.79350316,0.00017724,2]
[401411064,1768191048809,-1000.0,0.00017725,2]
[401411065,1768191048819,-1000.0,0.00017726,2]
[401411066,1768191048828,-350.68764993,0.00017727,2]
[401411067,1768191048839,-1000.0,0.00017728,2]
[401411068,1768191048849,-150.0,0.00017743,2]
[401411069,1768191048858,-150.0,0.00017743,2]
[401411070,1768191048868,-1000.0,0.00017744,2]
[401411071,1768191048879,-350.68764993,0.00017745,2]
[401411072,1768191048889,-1000.0,0.0001775,2]
[401411073,1768191048898,-1000.0,0.00017753,2]
[401411074,1768191048908,-1000.0,0.00017763,2]
[401411075,1768191048918,-350.68764993,0.00017764,2]
[401411076,1768191048927,-1101.0,0.00017767,2]
[401411077,1768191048938,-150.0,0.00017775,2]
[401411078,1768191048948,-150.0,0.00017775,2]
[401411079,1768191048958,-350.68764993,0.00017782,2]
[401411080,1768191048967,-378.23,0.0001779,2]
[401411081,1768191048977,-1997.0,0.00017797,2]
[401411082,1768191048986,-683.82645385,0.00017797,2]
[401411083,1768191048996,-1000.0,0.00017798,2]
[401411084,1768191049005,-350.68764993,0.000178,2]
[401411085,1768191049016,-1198.0,0.000178,2]
[401411086,1768191049026,-2200.0,0.000178,6]
[401411087,1768191049036,-1073.4,0.00017803,2]
[401411088,1768191049046,-156.587,0.00017807,2]
[401411089,1768191049055,-150.67981664,0.00017808,2]
[401411090,1768191049065,-1000.0,0.00017808,2]
[401411091,1768191049075,-2987.79350316,0.00017812,2]
[401411092,1768191049085,-1000.0,0.00017815,2]
[401411093,1768191049094,-1000.0,0.00017818,2]
[401411094,1768191049104,-1000.0,0.00017818,2]
[401411095,1768191049113,-350.68764993,0.00017818,2]
[401411096,1768191049123,-150.0,0.0001782,2]
[401411097,1768191049133,-2109.39679,0.0001782,2]
[401411098,1768191049142,-2109.39679,0.0001782,2]
[401411099,1768191049152,-910.24842296,0.0001782,2]
[401411100,1768191049162,-1000.0,0.00017824,2]
[401411101,1768191049171,-500.0,0.00017829,2]
[401411102,1768191049181,-25000.0,0.0001783,3]
[401411103,1768191049190,-83171.52894996,0.0001783,2]
[401411104,1768191049200,-2109.39679,0.0001783,2]
[401411105,1768191049209,-1000.0,0.00017832,2]
[401411106,1768191049219,-1000.0,0.00017832,2]
[401411107,1768191049230,-1000.0,0.00017832,2]
[401411108,1768191049238,-1000.0,0.00017833,2]
[401411109,1768191049248,-350.68764993,0.00017836,2]
[401411110,1768191049257,-25000.0,0.00017838,3]
[401411111,1768191049267,-25000.0,0.00017847,3]
[401411112,1768191049277,-150.0,0.0001785,2]
[401411113,1768191049286,-350.68764993,0.00017855,2]
[401411114,1768191049296,-200.0,0.00017855,2]
[401411115,1768191049305,-25000.0,0.00017856,3]
[401411116,1768191049315,-200.0,0.00017856,2]
[401411117,1768191049325,-1000.0,0.00017856,2]
[401411118,1768191049335,-1000.0,0.00017858,2]
[401411119,1768191049345,-1000.0,0.00017858,2]
[401411120,1768191049355,-1110.78417922,0.00017859,5]
[401411121,1768191049367,-2109.39679,0.0001786,2]
[401411122,1768191049379,-150.0,0.00017862,2]
[401411123,1768191049390,-510.98377513,0.00017864,2]
[401411124,1768191049401,-25000.0,0.00017865,3]
[401411125,1768191049414,-1000.0,0.00017867,2]
[401411126,1768191049425,-150.0,0.00017871,2]
[401411127,1768191049435,-150.0,0.00017871,2]
[401411128,1768191049444,-350.68764993,0.00017873,2]
[401411129,1768191049454,-500.0,0.00017873,2]
[401411130,1768191049464,-500.0,0.00017873,2]
[401411131,1768191049475,-500.0,0.00017873,2]
[401411132,1768191049485,-500.0,0.00017873,2]
[401411133,1768191049495,-500.0,0.00017873,2]
[401411134,1768191049506,-500.0,0.00017873,2]
[401411135,1768191049515,-1000.0,0.00017873,2]
[401411136,1768191049525,-25000.0,0.00017874,3]
[401411137,1768191049534,-2109.39679,0.0001788,2]
[401411138,1768191049544,-1000.0,0.00017881,2]
[401411139,1768191049554,-25000.0,0.00017882,3]
[401411140,1768191049565,-1000.0,0.00017888,2]
[401411141,1768191049574,-1047.04298225,0.0001789,2]
[401411142,1768191049583,-350.68764993,0.00017891,2]
[401411143,1768191049592,-25000.0,0.00017891,3]
[401411144,1768191049602,-1000.0,0.00017898,2]
[401411145,1768191049611,-1000.0,0.00017899,2]
[401411146,1768191049621,-4831.1649,0.000179,2]
[401411147,1768191049630,-25000.0,0.000179,3]
[401411148,1768191049639,-1054.4366,0.000179,2]
[401411149,1768191049649,-14981.27545297,0.000179,3]
[401411150,1768191049660,-317.89217191,0.000179,2]
[401411151,1768191049669,-14966.28065333,0.000179,2]
[401411152,1768191049678,-3138.0,0.000179,6]
[401411153,1768191049687,-1285.4435958,0.000179,2]
[401411154,1768191049696,-1285.44359573,0.000179,2]
[401411155,1768191049706,-1285.44359573,0.000179,2]
[401411156,1768191049716,-1285.44359573,0.000179,2]
[401411157,1768191049725,-1285.44359573,0.000179,2]
[401411158,1768191049735,-1285.44359573,0.000179,2]
[401411159,1768191049744,-1285.44359573,0.000179,2]
[401411160,1768191049754,-1285.44359573,0.000179,2]
[401411161,1768191049764,-936.76429918,0.000179,2]
[401411162,1768191049774,-1285.44359573,0.000179,2]
[401411163,1768191049784,-1285.44359573,0.000179,2]
[401411164,1768191049794,-150.0,0.000179,2]
[401411165,1768191049803,-1285.44359573,0.000179,2]
[401411166,1768191049812,-1285.44359573,0.000179,2]
[401411167,1768191049822,-1285.44359573,0.000179,2]
[401411168,1768191049832,-1285.44359573,0.000179,2]
[401411169,1768191049842,-1285.44359573,0.000179,2]
[401411170,1768191049852,-5424.51026009,0.000179,2]
[401411171,1768191049861,-2987.79350316,0.000179,2]
[401411172,1768191049870,-1285.44359573,0.000179,2]
[401411173,1768191049880,-1285.44359573,0.000179,2]
[401411174,1768191049889,-1285.44359573,0.000179,2]
[401411175,1768191049898,-260.71170844,0.000179,2]
[401411176,1768191049908,-1285.44359573,0.000179,2]
[401411177,1768191049918,-1285.44359573,0.000179,2]
[401411178,1768191049928,-230.0973816,0.000179,2]
[401411179,1768191049937,-500.0,0.000179,2]
[401411180,1768191049947,-500.0,0.000179,2]
[401411181,1768191049957,-500.0,0.000179,2]
[401411182,1768191049966,-500.0,0.000179,2]
[401411183,1768191049975,-500.0,0.000179,2]
[401411184,1768191049985,-500.0,0.000179,2]
[401411185,1768191049995,-500.0,0.000179,2]
[401411186,1768191050004,-500.0,0.000179,2]
[401411187,1768191050014,-500.0,0.000179,2]
[401411188,1768191050023,-500.0,0.000179,2]
[401411189,1768191050033,-500.0,0.000179,2]
[401411190,1768191050045,-500.0,0.000179,2]
[401411191,1768191050054,-500.0,0.000179,2]
[401411192,1768191050065,-500.0,0.000179,2]
[401411193,1768191050075,-500.0,0.000179,2]
[401411194,1768191050086,-500.0,0.000179,2]
[401411195,1768191050096,-500.0,0.000179,2]
[401411196,1768191050106,-500.0,0.000179,2]
[401411197,1768191050116,-500.0,0.000179,2]
[401411198,1768191050126,-500.0,0.000179,2]
[401411199,1768191050136,-500.0,0.000179,2]
[401411200,1768191050146,-500.0,0.000179,2]
[401411201,1768191050155,-500.0,0.000179,2]
[401411202,1768191050164,-500.0,0.000179,2]
[401411203,1768191050174,-500.0,0.000179,2]
[401411204,1768191050183,-500.0,0.000179,2]
[401411205,1768191050193,-500.0,0.000179,2]
[401411206,1768191050202,-500.0,0.000179,2]
[401411207,1768191050211,-500.0,0.000179,2]
[401411208,1768191050220,-500.0,0.000179,2]
[401411209,1768191050229,-500.0,0.000179,2]
[401411210,1768191050239,-500.0,0.000179,2]
[401411211,1768191050248,-500.0,0.000179,2]
[401411212,1768191050257,-500.0,0.000179,2]
[401411213,1768191050266,-500.0,0.000179,2]